[Event "Romanian Superliga 2024"]
[Site "Mamaia"]
[Date "2024.10.02"]
[Round "5.11"]
[White "Cioara, Andrei-Nestor"]
[Black "Padurariu, Mihai-Edward"]
[Result "1/2-1/2"]
[ECO "D32"]
[WhiteElo "2402"]
[BlackElo "2233"]
[Annotator "TA"]
[PlyCount "93"]
[EventDate "2024.09.26"]
[EventType "team-tourn"]
[EventCountry "ROU"]
[SourceTitle "playchess.com"]
[Source "ChessBase"]
[SourceQuality "1"]
[TimeControl "40/5400+30:1800+30"]

{[%evp 12,93,36,40,42,20,45,9,14,16,10,6,10,-4,-14,-22,-6,-30,-19,-42,-37,-59,-58,-61,-52,-106,-104,-151,-152,-158,-62,-154,-141,-150,-143,-151,-142,-150,-147,-143,-116,-130,-101,-111,-111,-123,-118,-113,-113,-131,-54,-60,-70,-114,-105,-141,-150,-196,-55,-28,-40,-38,-29,-17,0,-70,-39,-138,0,0,0,0,0,0,0,0,0,0,0,0,0,0,0,0]} 1. d4 {[%emt 0:00:03]} Nf6 {[%emt 0:00:21]} 2. c4 {[%emt 0:00:12]} e6 {[%emt 0:00:11]} 3. Nf3 {[%emt 0:02:27]} d5 {[%emt 0:00:28]} 4. Nc3 {[%emt 0:00:19]} c5 {[%emt 0:00:52]} 5. cxd5 {[%emt 0:00:17]} exd5 {[%emt 0:00:13]} 6. Bg5 {[%emt 0:00:59]} Be6 {[%emt 0:00:13]} 7. e3 {[%emt 0:00:15]} c4 {[%emt 0:01:40]} 8. Bxf6 {[%emt 0:01:54]} Qxf6 {[%emt 0:01:08]} 9. a3 {[%emt 0:00:15] Dodges Bb4} (9. Qa4+ {with more complications.} Nc6 10. Bxc4 dxc4 11. d5) 9... Be7 {[%emt 0:09:29]} 10. g3 {[%emt 0:01:11]} O-O {[%emt 0:01:06]} 11. Bg2 {[%emt 0:00:02]} Rd8 {[%emt 0:03:14]} 12. Ne5 {[%emt 0:25:16]} Nc6 {[%emt 0:07:18]} 13. f4 {[%emt 0:00:01]} Qh6 {[%emt 0:06:29]} 14. Qf3 {[%emt 0:11:59]} f6 {[%emt 0:07:46]} 15. Ng4 {[%emt 0:00:01] Excellent horsemanship.} Qg6 {[%emt 0:00:07]} 16. Nf2 {[%emt 0:00:01][%cal Of4f5]} f5 {[%emt 0:09:07]} 17. O-O {[%emt 0:11:22]} Rab8 {[%emt 0:02:54]} 18. Rfb1 {[%emt 0:05:54]} (18. Qe2 $15) 18... Na5 $1 $17 {[%emt 0:05:58]} 19. b4 {[%emt 0:10:23]} ({Only move:} 19. Rf1) 19... cxb3 {[%emt 0:07:15]} 20. Qd1 {[%emt 0:00:01]} Nc4 {[%emt 0:11:52]} (20... Bf7 $17 {aiming for ...Rbc8.} 21. Nd3 Qc6) 21. Qd3 {[%emt 0:00:42]} (21. Rxb3 $15 Nxe3 22. Qe2 Nxg2 23. Kxg2) 21... b2 {[%emt 0:05:44]} (21... Nxa3 22. Rxb3 Nc4 23. Rxa7 $16 (23. Nxd5 Rxd5 24. Qxc4 Ra5 $17)) 22. Ra2 {[%emt 0:00:01]} b5 {[%emt 0:00:42]} 23. Ncd1 {[%emt 0:09:59]} a5 {[%emt 0:04:58]} 24. Nxb2 {[%emt 0:00:55]} Qf7 {[%emt 0:01:14]} 25. Nbd1 {[%emt 0:02:33]} Qf8 {[%emt 0:00:45]} 26. a4 {[%emt 0:03:00]} Na3 {[%emt 0:03:32]} 27. Rxa3 {[%emt 0:06:05]} Bxa3 {[%emt 0:00:06]} 28. axb5 {[%emt 0:00:06]} Bb4 {[%emt 0:01:59]} 29. Nc3 {[%emt 0:00:07]} Qe8 {[%emt 0:02:26]} 30. Nfd1 {[%emt 0:00:58]} Qd7 {[%emt 0:00:44]} (30... Kh8 $17 31. Bf3 Rdc8) 31. Bf1 $15 {[%emt 0:00:40]} Rdc8 {[%emt 0:00:54]} 32. Na4 {[%emt 0:02:48]} Qc7 {[%emt 0:01:55]} 33. Ndc3 {[%emt 0:05:38]} Bxc3 {[%emt 0:03:11]} 34. Rc1 {[%emt 0:00:01] [#]} (34. Nc5 $17 {is a better defense.} Bb4 35. Nxe6) 34... Qd6 {[%emt 0:00:53]} 35. Rxc3 {[%emt 0:01:01]} Rxc3 {[%emt 0:00:17]} 36. Qxc3 {[%emt 0:00:14][%cal Oa4c5]} Qb4 {[%emt 0:00:19]} 37. Qc6 $1 {[%emt 0:00:29]} Bf7 {[%emt 0:01:03]} 38. b6 {[%emt 0:00:19]} ({White must play} 38. Nc5 $1 $11 Qc3 39. b6) 38... Qb3 {[%emt 0:00:19]} 39. Kf2 {[%emt 0:00:40]} (39. Kg2 $1 $15) 39... Re8 {[%emt 0:00:18]} (39... h6 $17 {...Re8 would now be deadly.} 40. Bb5 Bh5) 40. Nc3 $11 {[%emt 0:00:00] Black must now prevent b7. The position is equal.} Qb2+ {[%emt 0:00:00]} 41. Kg1 {[%emt 0:20:29] b7 is the strong threat.} Qc1 {[%emt 0:26:37]} (41... Rxe3 $2 42. b7 (42. Nxd5 $2 Re6 $19) (42. Nd1 Qxd4 43. Nxe3 Qxe3+ 44. Kg2 g5 $18) 42... Re8 (42... Qxc3 43. b8=Q+ Be8 44. Qcxe8+ Rxe8 45. Qxe8#) (42... Rxc3 43. Qc8+) 43. Nb5 $18) 42. b7 {[%emt 0:00:05][%cal Oc6e8] Threatens to win with Qxe8+!} Qxe3+ {[%emt 0:00:42]} 43. Kg2 {[%emt 0:00:02]} Bh5 {[%emt 0:03:17] Hoping for ...Bf3+.} (43... Qxd4 $2 44. Qxe8+ Bxe8 45. b8=Q $18 (45. b8=B $2 Qxc3 46. g4 Qb2+ 47. Kg3 Qb3+ 48. Kg2 Qxb8 $19)) 44. Qc8 {[%emt 0:06:59]} Bf3+ {[%emt 0:02:02]} (44... Qxd4 $2 {is the wrong capture.} 45. Be2 (45. b8=R $2 {loses.} Qd2+ $19) (45. b8=Q Qe3 $18) 45... Bf7 46. b8=Q $18 (46. b8=R Rxc8 47. Rxc8+ Be8 $16)) 45. Kh3 {[%emt 0:00:01][%cal Oc3d5] And now Nxd5! would win. Really sharp!} Bg4+ {[%emt 0:00:07]} 46. Kg2 {[%emt 0:00:01]} Bf3+ {[%emt 0:00:59]} 47. Kh3 {[%emt 0:00:03] Weighted Error Value: White=0.18 (very precise) /Black=0.19 (very precise) .  Mistake:       	White=6     	Black=4      Inaccurate:     	White=3     	Black=1      OK:         	White=11    	Black=17     Best:        	White=5     	Black=3      Strong:       	White=1     	Black=1} 1/2-1/2

[Event "Romanian Superliga 2024"]
[Site "Mamaia"]
[Date "2024.10.02"]
[Round "5.12"]
[White "Radu, David Cr."]
[Black "Corbu, George-Alexandru"]
[Result "1/2-1/2"]
[ECO "C54"]
[WhiteElo "2159"]
[BlackElo "2039"]
[Annotator "TA"]
[PlyCount "86"]
[EventDate "2024.09.26"]
[EventType "team-tourn"]
[EventCountry "ROU"]
[SourceTitle "playchess.com"]
[Source "ChessBase"]
[SourceQuality "1"]
[TimeControl "40/5400+30:1800+30"]

{[%evp 9,86,11,0,-50,-52,-72,-67,-200,-154,-287,-150,-194,-196,-185,-110,-131,-129,-132,-79,-78,-50,-72,-52,-59,-39,-80,-84,-79,-52,-41,-24,-43,18,29,29,7,0,0,0,0,0,0,45,-43,-23,-208,-197,-308,-213,-204,-139,-155,-133,-129,-121,-156,-121,-117,-124,-139,-94,-116,-33,-124,-90,-104,0,-130,-57,-55,-49,-56,-68,-87,-75,-93,0,-90,0]} 1. e4 {[%emt 0:00:04]} e5 {[%emt 0:00:30]} 2. Nf3 {[%emt 0:00:16]} Nc6 {[%emt 0:00:06]} 3. Bc4 {[%emt 0:00:13]} Bc5 {[%emt 0:00:39]} 4. c3 {[%emt 0:00:35]} Nf6 {[%emt 0:00:15]} 5. d4 {[%emt 0:01:10]} exd4 {[%emt 0:00:10]} 6. b4 {[%emt 0:00:07]} (6. cxd4 $11 Bb4+ 7. Bd2) 6... Bb6 $15 {[%emt 0:06:09]} 7. e5 {[%emt 0:01:07]} d5 {[%emt 0:02:00]} 8. Bd3 {[%emt 0:18:33]} (8. exf6 $15 dxc4 9. Qe2+ Be6 10. b5) 8... Ne4 $19 {[%emt 0:12:07]} 9. cxd4 {[%emt 0:20:57]} (9. b5 $17 Nxe5 (9... Nxc3 10. Nxc3 Nxe5 11. Nxe5 $18) (9... dxc3 $2 10. bxc6 Nxf2 11. Qe2 $19) 10. Nxe5) 9... O-O {[%emt 0:08:04]} (9... Nxd4 10. Be3 (10. Nxd4 $2 Nxf2 11. Bb5+ c6 $19) 10... Nxf3+ 11. Qxf3 $19) (9... Bxd4 10. Nxd4 Nxd4 11. O-O $11) (9... Nxb4 10. Qa4+ Nc6 11. Be3 $17) (9... Nxf2 $1 $19 10. Kxf2 Bxd4+ 11. Nxd4 Qh4+ 12. Kf1 Qxd4 (12... Nxd4 13. Nc3 $16)) 10. Bb2 {[%emt 0:11:27]} Nxb4 {[%emt 1:05:30]} 11. Be2 {[%emt 0:41:31]} Nc6 {[%emt 0:00:00]} (11... c5 $19 {aiming for ...cxd4.} 12. O-O c4) 12. O-O $17 {[%emt 0:00:00]} f6 {[%emt 0:00:00]} 13. Nbd2 {[%emt 0:00:00]} f5 {[%emt 0:00:00]} (13... Kh8 $142 14. Bd3 fxe5 15. dxe5 Bf5) 14. Nb3 {[%emt 0:00:00]} Ne7 {[%emt 0:00:00]} 15. Ne1 {[%emt 0:00:00]} f4 {[%emt 0:00:00]} 16. Rc1 {[%emt 0:00:00]} c6 {[%emt 0:00:00]} 17. Ba3 {[%emt 0:00:00]} Rf7 {[%emt 0:00:00]} 18. Bd3 {[%emt 0:00:00]} Bf5 {[%emt 0:00:00]} 19. Qc2 {[%emt 0:00:00]} g6 {[%emt 0:00:00]} 20. Nf3 {[%emt 0:00:00] Prevents Ng5} Nc8 {[%emt 0:00:00]} (20... g5 $15) 21. Rfe1 $11 {[%emt 0:00:00]} Ng5 {[%emt 0:00:00]} 22. Nxg5 {[%emt 0:00:00]} Qxg5 {[%emt 0:00:00]} 23. e6 {[%emt 0:00:00]} Rg7 $40 {[%emt 0:00:00][%mdl 128] Black has some attack.} 24. Bxf5 {[%emt 0:01:00]} gxf5 {[%emt 0:00:00][%csl Gg7][%cal Rg5g2]} 25. f3 $1 {[%emt 0:00:06] Active counter play!} Bc7 {[%emt 0:00:00]} 26. Re2 {[%emt 0:02:24]} (26. e7 $1 $14 Nxe7 27. Nc5) 26... Nd6 $15 {[%emt 0:00:00]} 27. Rce1 $2 {[%emt 0:00:36] [#]} (27. Bxd6 $11 {and White is okay.} Bxd6 28. Nc5) 27... Nc4 $1 $19 {[%emt 0:00:05]} 28. Bc1 {[%emt 0:00:53]} (28. e7 $142 Re8 29. Bc1) 28... Bd6 {[%emt 0:01:53][%cal Oc4e3]} 29. Kh1 {[%emt 0:02:11]} Re8 {[%emt 0:00:47][%cal Oc4e3]} 30. Nc5 {[%emt 0:00:49]} Qf6 {[%emt 0:03:41]} 31. Nd7 {[%emt 0:00:37]} Qg6 {[%emt 0:01:24]} (31... Qxd4 $2 32. Rd1 $18 (32. Qxf5 Kh8 $11) (32. Qxf5 Kh8 $11)) 32. a4 {[%emt 0:01:22]} Rge7 {[%emt 0:00:33][%cal Re7e6]} 33. Ne5 {[%emt 0:00:22] [#]} Bxe5 {[%emt 0:01:57]} ({Not} 33... Qxe6 34. Nxc6 (34. Bxf4 Bxe5 35. Bxe5 f4 $17) (34. Nxc4 $2 Qxe2 35. Qxe2 Rxe2 $19) 34... Qxe2 35. Nxe7+ Qxe7 36. Rxe7 Rxe7 37. Kg1 $18 (37. Qxf5 $2 Re1#) (37. Bd2 Kg7 $16)) 34. dxe5 {[%emt 0:00:02]} Rxe6 {[%emt 0:00:27]} 35. Bxf4 {[%emt 0:00:01]} Kf7 {[%emt 0:00:45]} (35... b6 $17) 36. g3 {[%emt 0:01:30]} (36. h3 $15) 36... Qh5 {[%emt 0:00:46]} 37. Kg2 {[%emt 0:00:07]} Qg6 {[%emt 0:00:24]} (37... Kg8 $17) 38. Kf2 {[%emt 0:00:29]} (38. Kh1 $1 $11) 38... h5 {[%emt 0:00:33]} (38... Kg8 $17 39. Qc3 b6) 39. Qd3 {[%emt 0:00:45]} R8e7 {[%emt 0:00:33]} 40. Qd4 {[%emt 0:00:42]} b6 {[%emt 0:00:22]} 41. Qd3 {[%emt 0:00:31]} Rd7 {[%emt 0:00:34]} 42. Rc2 {[%emt 0:02:38] And now Rxc4 would win.} Rde7 {[%emt 0:01:18]} 43. Rce2 {[%emt 0:00:46]} Rd7 {[%emt 0:04:39] And White is the lucky defender.   Weighted Error Value: White=0.31/Black=0.32.  Loses game:     	White=1     	---        Mistake:       	White=6     	Black=8      Inaccurate:     	White=1     	Black=6      OK:         	White=9     	Black=9      Best:        	White=6     	Black=2      Strong:       	White=1     	Black=1} (43... Kg8 $17) 1/2-1/2

[Event "Romanian Superliga 2024"]
[Site "Mamaia"]
[Date "2024.10.02"]
[Round "5.13"]
[White "Theodorou, Nikolas"]
[Black "Hamitevici, Vladimir"]
[Result "1-0"]
[ECO "E12"]
[WhiteElo "2619"]
[BlackElo "2419"]
[Annotator "TA"]
[PlyCount "57"]
[EventDate "2024.09.26"]
[EventType "team-tourn"]
[EventCountry "ROU"]
[SourceTitle "playchess.com"]
[Source "ChessBase"]
[SourceQuality "1"]
[TimeControl "40/5400+30:1800+30"]

{[%evp 11,57,32,33,16,10,4,48,56,70,78,62,55,53,60,98,56,184,162,161,68,58,34,30,25,30,31,27,30,19,41,30,18,218,168,164,17,32,-44,298,306,389,404,679,653,775,598,1048,1052]} 1. d4 {[%emt 0:00:06]} Nf6 {[%emt 0:01:08]} 2. Nf3 {[%emt 0:00:08]} b6 {[%emt 0:01:38]} 3. c4 {[%emt 0:00:38]} e6 {[%emt 0:01:11]} 4. a3 {[%emt 0:00:16]} Bb7 {[%emt 0:01:25]} 5. Nc3 {[%emt 0:00:08]} Ne4 {[%emt 0:01:59]} 6. Nxe4 {[%emt 0:00:08]} Bxe4 {[%emt 0:00:01]} 7. h4 {[%emt 0:00:09]} Be7 {[%emt 0:05:03][%cal Bf8e7,Be7h4,Bh4f6,Bf6d4][%mdl 32]} 8. d5 {[%emt 0:00:14]} Bxf3 {[%emt 0:01:32]} 9. exf3 {[%emt 0:02:46] White is slightly better.} Bxh4 {[%emt 0:02:48] Black is weak on the light squares} 10. f4 {[%emt 0:21:25]} Bf6 {[%emt 0:08:50]} 11. g4 {[%emt 0:00:28] White is more active.} g6 $1 {[%emt 0:01:09]} 12. Bg2 {[%emt 0:07:50] Threatens to win with dxe6.} exd5 {[%emt 0:10:49]} 13. Kf1 {[%emt 0:01:02]} (13. Bxd5 c6 14. Bg2 Qe7+ 15. Kf1 Qe6 $11) (13. cxd5 d6 $14) (13. Qxd5 $6 Nc6 $14) 13... c5 {[%emt 0:05:48]} (13... Bg7 $14) 14. Qxd5 {[%emt 0:04:04]} (14. cxd5 d6 $11) (14. Bxd5 $6 Nc6 $16) 14... Nc6 {[%emt 0:00:21]} 15. g5 {[%emt 0:00:08]} (15. Bd2 $1 $18) 15... Bd4 $14 {[%emt 0:08:53]} 16. f5 {[%emt 0:03:05] And now Be3 would win.} (16. Be3 $5 O-O 17. Bxd4 cxd4 18. Rh4 $14) 16... Qc7 $1 {[%emt 0:02:32]} 17. Rh4 {[%emt 0:15:12]} O-O-O $1 {[%emt 0:02:23]} 18. Re4 {[%emt 0:00:59] Repels Qe5. aiming for Bf4.} (18. Qxf7 $2 Rdf8 19. Bf4 Rxf7 $19) 18... gxf5 {[%emt 0:05:50]} 19. Bf4 $36 {[%emt 0:03:28][%mdl 2048] White is more active.} fxe4 {[%emt 0:00:53]} 20. Bxc7 {[%emt 0:00:06]} Kxc7 {[%emt 0:00:03]} 21. Re1 {[%emt 0:07:58]} (21. Qxf7 $2 Rdf8 (21... Bxb2 22. Rd1 $16) 22. Qh5 Rxf2+ 23. Kg1 Rxb2+ 24. Kh1 Rxg2 25. Kxg2 Bxa1 $19) 21... e3 {[%emt 0:12:51]} (21... Rhe8 $11 {and Black is okay.}) 22. fxe3 $18 {[%emt 0:02:17]} Bxb2 {[%emt 0:00:06] [#]} 23. Rd1 {[%emt 0:03:24]} (23. Qxf7 $2 {is the wrong capture.} Rhf8 $19 (23... Bxa3 $2 24. Ke2 $18) (23... Bxa3 $2 24. Qf4+ Kc8 25. Kg1 $18)) ({Only move:} 23. Re2 $1 $18 {[%cal Re2b2]} Bg7 24. Rd2 (24. Qxf7 $2 Rhf8 $19)) 23... Be5 $11 {[%emt 0:02:07]} 24. Bh3 {[%emt 0:13:08]} ({White should play} 24. Qxf7 $14 Rdf8 25. Rxd7+ Kc8 26. Bxc6) 24... f6 $2 {[%emt 0:07:44][%mdl 8192] [#]} (24... Rhg8 $1 $15 {stays ahead.}) 25. gxf6 $1 $18 {[%emt 0:02:42][%cal Bg5f6,Bf6f7][%mdl 32]} (25. Bxd7 Nb8 26. gxf6 Nxd7 $16) 25... Rhf8 {[%emt 0:07:29]} 26. f7 {[%emt 0:00:19]} (26. Bxd7 Rxf6+ 27. Ke2 h5 (27... Rd6 28. Bxc6 Rxd5 29. Bxd5 $14) 28. Bxc6 Rxd5 29. Bxd5 h4 $16) 26... d6 {[%emt 0:01:07]} (26... Bg7 $142 27. Bg2 (27. Bxd7 Ne5 $11) 27... Be5) 27. Ke2 {[%emt 0:01:55] White is clearly winning.} h6 {[%emt 0:06:31][%cal Bh7h6,Bh6h5][%mdl 32]} 28. Qe6 {[%emt 0:03:34][%cal Od1g1] Wards off Bf6. Hoping for Rg1!} h5 {[%emt 0:00:59]} 29. Rg1 {[%emt 0:00:58] Weighted Error Value: White=0.38/Black=0.69.  Loses game:     	---       	Black=2      Mistake:       	White=3     	Black=2      Inaccurate:     	White=1     	Black=2      OK:         	White=10    	Black=3      Best:        	White=1     	Black=4      Strong:       	White=1     	Black=3} 1-0

[Event "Romanian Superliga 2024"]
[Site "Mamaia"]
[Date "2024.10.02"]
[Round "5.14"]
[White "Soltanici, Ruslan"]
[Black "Kourkoulos-Arditis, Stamatis"]
[Result "0-1"]
[ECO "C70"]
[WhiteElo "2316"]
[BlackElo "2570"]
[Annotator "TA"]
[PlyCount "118"]
[EventDate "2024.09.26"]
[EventType "team-tourn"]
[EventCountry "ROU"]
[SourceTitle "playchess.com"]
[Source "ChessBase"]
[SourceQuality "1"]
[TimeControl "40/5400+30:1800+30"]

{[%evp 28,118,15,0,23,5,32,25,58,37,40,51,37,31,30,29,60,35,37,0,31,21,23,6,5,13,4,8,3,0,0,0,0,-21,0,0,0,0,0,0,0,0,0,-15,-15,-6,0,0,0,-20,7,0,0,-104,-104,-99,-99,-100,-100,-345,-312,-220,-179,-178,-158,-156,-154,-162,-145,-140,-62,-62,-62,-62,-62,-1077,-890,-1457,-455,-1710,-1775,-1710,-1487,-1765,-1645,-5912,-4133,-2498,-1564,-29978,-29979,-29979,-29980]} 1. e4 {[%emt 0:00:05]} e5 {[%emt 0:00:05]} 2. Nf3 {[%emt 0:00:11]} Nc6 {[%emt 0:00:05]} 3. Bb5 {[%emt 0:00:12]} a6 {[%emt 0:00:05]} 4. Ba4 {[%emt 0:00:06]} Bc5 {[%emt 0:00:14]} 5. O-O {[%emt 0:01:04]} Nge7 {[%emt 0:00:27]} 6. Bxc6 $146 {[%emt 0:03:39] C70: Ruy Lopez: 3...a6 4 Ba4, Norwegian and Delayed Schliemann.} ({Predecessor:} 6. Nxe5 Nxe5 7. d4 b5 8. Bb3 Bxd4 9. Qxd4 d6 10. c3 O-O 11. Bf4 c5 12. Qd1 Bb7 13. Re1 {1-0 Carlsen,M (2830)-Nakamura,H (2794) Norway Chess Armageddon 12th rapid 2024 (2)}) 6... Nxc6 {[%emt 0:02:01]} 7. Nxe5 {[%emt 0:00:21]} Nxe5 {[%emt 0:03:37]} 8. d4 {[%emt 0:00:08]} Bd6 {[%emt 0:10:51]} 9. dxe5 {[%emt 0:00:33]} Bxe5 {[%emt 0:00:04]} 10. f4 {[%emt 0:01:37]} Bd6 {[%emt 0:01:50]} 11. Be3 {[%emt 0:27:59]} O-O {[%emt 0:04:13]} 12. Nc3 {[%emt 0:01:38]} Re8 {[%emt 0:01:37]} 13. Qf3 {[%emt 0:12:31]} Bf8 {[%emt 0:01:04]} 14. Rad1 {[%emt 0:12:57]} d6 {[%emt 0:10:21]} 15. Nd5 {[%emt 0:08:26]} b5 {[%emt 0:15:34]} 16. Rfe1 {[%emt 0:08:34]} Rb8 {[%emt 0:06:26]} 17. f5 {[%emt 0:06:22]} f6 {[%emt 0:01:22]} 18. Bd4 {[%emt 0:03:41]} c6 {[%emt 0:07:10]} 19. Nf4 {[%emt 0:00:38]} Qc7 {[%emt 0:01:45]} 20. b3 {[%emt 0:03:18]} Qf7 {[%emt 0:00:32]} 21. g4 {[%emt 0:00:14]} Rb7 {[%emt 0:02:03]} 22. Bf2 {[%emt 0:01:53]} Rbe7 {[%emt 0:09:00]} 23. h4 {[%emt 0:00:54]} g6 {[%emt 0:00:18]} 24. Bg3 {[%emt 0:02:13]} b4 {[%emt 0:13:52]} 25. Kh2 {[%emt 0:01:34]} d5 {[%emt 0:01:01]} 26. fxg6 {[%emt 0:00:54]} hxg6 {[%emt 0:00:05]} 27. exd5 {[%emt 0:00:03]} Rxe1 {[%emt 0:00:15]} 28. Rxe1 {[%emt 0:00:12]} Rxe1 {[%emt 0:00:05]} 29. Bxe1 {[%emt 0:00:03]} cxd5 {[%emt 0:03:13]} 30. Bg3 {[%emt 0:00:29]} d4 {[%emt 0:01:00]} 31. Nd5 {[%emt 0:00:52]} f5 {[%emt 0:02:12]} 32. g5 {[%emt 0:02:14]} Bb7 {[%emt 0:01:23]} 33. Nf6+ {[%emt 0:00:09]} Qxf6 {[%emt 0:00:05]} 34. Qxb7 {[%emt 0:00:03]} Qe6 {[%emt 0:00:05]} 35. Qc7 {[%emt 0:01:04]} Qe2+ {[%emt 0:00:56]} 36. Kg1 {[%emt 0:00:20]} Qd1+ {[%emt 0:02:13]} 37. Kh2 {[%emt 0:00:14]} Qe2+ {[%emt 0:00:25]} 38. Kg1 {[%emt 0:00:05]} Be7 {[%emt 0:00:14]} 39. Qe5 {[%emt 0:01:52]} (39. Qc4+ {simplifies} Qxc4 40. bxc4 Bc5 41. Kg2) 39... Qe4 {[%emt 0:01:24]} 40. Qxe4 {[%emt 0:00:00]} (40. Kf1 $11 {keeps the balance.}) 40... fxe4 $17 {[%emt 0:00:00]} 41. Be5 {[%emt 0:06:41]} Bc5 {[%emt 0:01:23]} 42. Kg2 {[%emt 0:03:01]} Kf7 {[%emt 0:00:11]} 43. Bc7 $2 {[%emt 0:01:19]} (43. Bf6 $17) 43... Ke6 $19 {[%emt 0:00:49]} 44. Bb8 {[%emt 0:00:58]} Kf5 {[%emt 0:13:21]} 45. Kg3 {[%emt 0:01:09]} Bf8 {[%emt 0:01:23]} 46. Bc7 {[%emt 0:01:26]} Bg7 {[%emt 0:00:32]} 47. Ba5 {[%emt 0:00:49]} Be5+ {[%emt 0:00:07]} 48. Kf2 {[%emt 0:04:37]} Kg4 {[%emt 0:03:54]} ({Black should try} 48... Bd6 $1 $17 {aiming for ...Kg4.} 49. Bb6 Be5) 49. Bxb4 $15 {[%emt 0:00:27]} Kxh4 {[%emt 0:00:20]} 50. Be7 {[%emt 0:01:21]} Kg4 {[%emt 0:03:37]} 51. b4 $2 {[%emt 0:07:01][%mdl 8192] [#]} (51. Ke2 $15) 51... Kf5 $1 $19 {[%emt 0:00:32]} 52. a4 {[%emt 0:00:14]} Ke6 {[%emt 0:01:15]} 53. Bf6 {[%emt 0:00:40] [#]} (53. Bd8 $142 Kd5 54. Ke2) 53... Kd5 $1 $19 {[%emt 0:00:20]} ({Weaker is} 53... Bxf6 54. gxf6 Kxf6 55. b5 axb5 56. a5 $11) 54. Ke2 {[%emt 0:07:09]} Bc7 {[%emt 0:01:29]} 55. Be7 {[%emt 0:00:32]} Kc4 {[%emt 0:01:18]} 56. Kd1 {[%emt 0:00:32]} Bf4 {[%emt 0:03:34]} 57. Ke2 {[%emt 0:00:23]} Kc3 {[%emt 0:01:40]} 58. Kd1 {[%emt 0:00:45]} d3 {[%emt 0:00:17]} 59. cxd3 {[%emt 0:00:25]} Kxd3 {[%emt 0:00:04]} 0-1

[Event "Romanian Superliga 2024"]
[Site "Mamaia"]
[Date "2024.10.02"]
[Round "5.15"]
[White "Marin, Mihail"]
[Black "Filip, Andrei"]
[Result "1/2-1/2"]
[ECO "A38"]
[WhiteElo "2455"]
[BlackElo "2278"]
[Annotator "TA"]
[PlyCount "76"]
[EventDate "2024.09.26"]
[EventType "team-tourn"]
[EventCountry "ROU"]
[SourceTitle "playchess.com"]
[Source "ChessBase"]
[SourceQuality "1"]
[TimeControl "40/5400+30:1800+30"]

{[%evp 17,76,18,29,20,8,17,33,0,0,0,-10,-8,-14,-16,5,0,0,0,0,7,7,0,0,0,0,0,0,0,0,-42,-39,-49,-16,-18,0,0,0,0,0,0,0,0,0,0,0,0,0,0,0,0,0,0,0,0,0,0,0,0,0,0,0]} 1. c4 {[%emt 0:00:03]} Nf6 {[%emt 0:00:07]} 2. g3 {[%emt 0:00:05]} g6 {[%emt 0:00:13]} 3. b3 {[%emt 0:00:26]} Bg7 {[%emt 0:00:42]} 4. Bb2 {[%emt 0:00:04]} c5 {[%emt 0:00:15]} 5. Bg2 {[%emt 0:00:08]} O-O {[%emt 0:00:12]} 6. Nf3 {[%emt 0:00:05][%cal Bg1f3,Bf3e1,Be1c2][%mdl 32]} d6 {[%emt 0:00:07]} 7. O-O {[%emt 0:00:07]} e5 {[%emt 0:00:13]} 8. d3 {[%emt 0:00:27]} Nc6 {[%emt 0:00:25]} 9. Nc3 {[%emt 0:00:06]} h6 {[%emt 0:00:30]} 10. Ne1 {[%emt 0:04:43]} Be6 {[%emt 1:32:46]} 11. Nd5 {[%emt 0:00:45]} Qd7 {[%emt 0:00:00]} 12. Nc2 {[%emt 0:03:47] White is slightly better.} Bh3 {[%emt 0:00:00]} 13. Nce3 {[%emt 0:20:08]} (13. e4 $5) 13... Bxg2 {[%emt 0:00:00]} 14. Kxg2 {[%emt 0:03:07]} (14. Nxg2 {simplifies} Nxd5 15. cxd5 Nb4 16. e4) 14... Nxd5 {[%emt 0:00:00]} 15. Nxd5 {[%emt 0:00:42]} Ne7 {[%emt 0:00:00]} 16. Nxe7+ {[%emt 0:03:16]} Qxe7 {[%emt 0:00:00]} 17. e4 {[%emt 0:00:08]} f5 {[%emt 0:00:00]} 18. exf5 {[%emt 0:07:48]} Rxf5 {[%emt 0:00:00]} 19. Qg4 {[%emt 0:03:32]} Qf7 {[%emt 0:00:00]} 20. Qe4 {[%emt 0:02:34]} Rf8 {[%emt 0:00:00]} 21. f3 {[%emt 0:00:51]} h5 {[%emt 0:00:00]} 22. Rae1 {[%emt 0:10:41]} g5 {[%emt 0:00:00][%cal Og5g4] [#] ...g4! would now be deadly.} 23. Qd5 {[%emt 0:11:35]} Qxd5 {[%emt 0:00:00]} 24. cxd5 {[%emt 0:08:14]} g4 {[%emt 0:00:00]} 25. fxg4 {[%emt 0:00:08] The position is equal.} Rxf1 {[%emt 0:00:00]} 26. Rxf1 {[%emt 0:00:04]} Rxf1 {[%emt 0:00:00]} 27. Kxf1 {[%emt 0:00:02]} hxg4 $11 {[%emt 0:00:00][%cal Oe5e4][%mdl 4096] [#] Endgame. aiming for ...e4! KB-KB} 28. Bc1 {[%emt 0:11:23]} b5 {[%emt 0:00:00]} 29. Kg2 {[%emt 0:00:34]} Kf7 {[%emt 0:00:00]} 30. h3 {[%emt 0:00:46]} gxh3+ {[%emt 0:01:14]} 31. Kxh3 {[%emt 0:00:04]} Kg6 {[%emt 0:00:17]} 32. Kg4 {[%emt 0:00:44]} Bf6 {[%emt 0:01:13]} 33. Bd2 {[%emt 0:02:15]} Bd8 {[%emt 0:02:54]} 34. Be3 {[%emt 0:02:19]} a6 {[%emt 0:01:52]} 35. Bd2 {[%emt 0:00:12]} a5 {[%emt 0:00:59]} 36. Be3 {[%emt 0:02:02]} Be7 {[%emt 0:00:18]} 37. Bd2 {[%emt 0:00:40]} Bd8 {[%emt 0:00:10]} 38. Be3 {[%emt 0:00:07]} Be7 {[%emt 0:00:37] Weighted Error Value: White=0.05 (flawless) /Black=0.05 (flawless) .  Inaccurate:     	White=2     	Black=1      OK:         	White=13    	Black=14     Best:        	---       	Black=1} 1/2-1/2